[Event "IV Estrellas 2022"]
[Site "La Palma"]
[Date "2022.08.06"]
[Round "1.7"]
[White "Baskin, Robert"]
[Black "Chitsazian, Daniel"]
[Result "1-0"]
[ECO "B11"]
[WhiteElo "2408"]
[BlackElo "1767"]
[Annotator "TA"]
[PlyCount "101"]
[EventDate "2022.08.06"]
[EventType "swiss"]
[EventCountry "ESP"]
[SourceTitle "playchess.com"]
[Source "ChessBase"]
[SourceQuality "1"]
[TimeControl "5400+30"]

{[%evp 10,101,21,31,39,26,24,27,20,20,26,0,0,0,0,0,0,0,0,0,0,0,28,15,25,37,41,38,44,50,60,77,94,106,90,33,29,2,9,10,3,10,106,102,103,82,156,170,160,156,132,54,71,56,73,7,0,0,3,0,10,0,0,0,11,10,16,9,41,0,0,0,0,0,0,0,0,0,12836,11825,12842,12843,12845,12846,12847,12847,12847,12847,12848,12848,12849,12849,12850,12849]} 1. e4 {[%emt 0:00:08]} c6 {[%emt 0:00:06]} 2. Nc3 {[%emt 0:00:39]} d5 {[%emt 0:00:06]} 3. Nf3 {[%emt 0:00:07]} dxe4 {[%emt 0:00:15]} 4. Nxe4 {[%emt 0:00:08]} Nf6 {[%emt 0:01:02]} 5. Qe2 {[%emt 0:00:20]} Nxe4 {[%emt 0:00:04]} 6. Qxe4 {[%emt 0:00:05]} Be6 {[%emt 0:00:53] B11: Caro-Kann: Two Knights Variation.} 7. b3 {[%emt 0:02:42]} Nd7 {[%emt 0:02:34]} 8. Bb2 {[%emt 0:00:13]} Nf6 {[%emt 0:00:07] White has an edge.} 9. Qh4 {[%emt 0:00:37]} Bf5 {[%emt 0:03:59]} 10. O-O-O {[%emt 0:10:18]} e6 {[%emt 0:13:55]} 11. Ne5 {[%emt 0:08:20] Against Ng4} Ng4 {[%emt 0:04:36]} 12. Qg3 {[%emt 0:02:12]} Nxe5 {[%emt 0:07:49]} 13. Qxe5 {[%emt 0:00:26]} Qd5 {[%emt 0:03:22] [#]} 14. Qc3 $146 {[%emt 0:09:04]} ({Predecessor:} 14. Bc4 Qxe5 {½-½ (14) Reimann,S (2146)-Cvitan,E (2289) Schwaebisch Gmuend 2020}) 14... Qc5 {[%emt 0:12:22]} 15. Bc4 {[%emt 0:00:39]} b5 {[%emt 0:02:50]} 16. d4 {[%emt 0:05:18]} Qd6 {[%emt 0:28:10]} 17. Be2 {[%emt 0:00:57]} Be7 {[%emt 0:03:43]} 18. Bf3 {[%emt 0:06:04]} O-O {[%emt 0:02:02]} 19. h4 {[%emt 0:02:17]} Qf4+ {[%emt 0:01:42]} 20. Qd2 $1 {[%emt 0:05:43]} g5 {[%emt 0:05:01]} 21. Qxf4 {[%emt 0:12:39]} ({Much weaker is} 21. Bxc6 $6 Rac8 22. Qxf4 gxf4 $11) 21... gxf4 {[%emt 0:00:01]} 22. Rde1 {[%emt 0:00:12]} ({Of course not} 22. Bxc6 $6 Rac8 23. d5 exd5 24. Rxd5 Be6 $11) (22. Kb1 $16) 22... Rac8 $14 {[%emt 0:01:12]} 23. Be4 {[%emt 0:01:40]} Bxe4 {[%emt 0:00:19]} 24. Rxe4 {[%emt 0:00:07]} Bd6 {[%emt 0:00:09]} 25. Kb1 {[%emt 0:00:29]} c5 {[%emt 0:01:14]} (25... Rfe8 $11 {remains equal.}) 26. dxc5 $16 {[%emt 0:00:27]} Rxc5 {[%emt 0:00:24]} 27. Rd1 {[%emt 0:00:30]} Rd5 {[%emt 0:01:48]} ({Black should try} 27... Rc6) 28. Rxd5 {[%emt 0:05:37]} exd5 {[%emt 0:00:01][%mdl 4096] Endgame KRB-KRB} 29. Rd4 {[%emt 0:00:06]} Re8 {[%emt 0:00:01] ( -> ...Re1+)} 30. a3 {[%emt 0:00:11]} (30. Rxd5 {gets mated.} Re1+ 31. Bc1 Ba3 32. Rg5+ Kf8) (30. Kc1 $16) 30... Re5 $14 {[%emt 0:01:03]} 31. Ka2 {[%emt 0:01:44]} Rh5 {[%emt 0:00:26]} 32. g4 {[%emt 0:02:37]} (32. c4 $16) 32... fxg3 $11 {[%emt 0:00:18]} 33. fxg3 {[%emt 0:00:05] next g4 is good for White.} a6 {[%emt 0:00:16]} 34. Rd3 {[%emt 0:07:46][%cal Oc2c4]} Kf8 {[%emt 0:00:44]} 35. Rf3 {[%emt 0:00:19]} Rh6 {[%emt 0:01:22]} 36. Rd3 {[%emt 0:04:10]} Rh5 {[%emt 0:00:09]} 37. c4 {[%emt 0:01:11]} bxc4 {[%emt 0:00:56]} 38. bxc4 {[%emt 0:00:07]} Rf5 {[%emt 0:01:43]} 39. cxd5 {[%emt 0:02:37]} (39. g4 $5 {[%cal Rg4f5]} Rf4 40. Rxd5 $14) 39... Rf2 {[%emt 0:00:21]} 40. Kb3 {[%emt 0:00:21]} Rg2 {[%emt 0:00:10]} 41. Bf6 {[%emt 0:01:32]} Rxg3 {[%emt 0:00:28]} 42. Rxg3 {[%emt 0:00:21]} Bxg3 {[%emt 0:00:01] KB-KB} 43. Kb4 {[%emt 0:00:49] Threatens to win with Kc5.} Bd6+ {[%emt 0:00:15][%mdl 8192]} (43... Ke8 $11) 44. Ka5 $18 {[%emt 0:00:11] White is clearly winning.} Bxa3 {[%emt 0:00:11] [#]} 45. Kb6 $1 {[%emt 0:00:09]} Be7 {[%emt 0:01:06] [#]} 46. Bxe7+ $1 {[%emt 0:00:16]} Ke8 {[%emt 0:03:41]} 47. Kc7 {[%emt 0:00:13] Threatening mate with Bf6.} Kxe7 {[%emt 0:00:22]} 48. d6+ {[%emt 0:00:05]} Ke6 {[%emt 0:00:06]} 49. d7 {[%emt 0:00:04]} f5 {[%emt 0:00:09]} 50. d8=Q {[%emt 0:00:05] White threatens Qd6+ and mate.} f4 {[%emt 0:00:30]} 51. Qg5 {[%emt 0:13:03] Weighted Error Value: White=0.11 (very precise) /Black=0.13 (very precise)} 1-0

[Event "IV Estrellas 2022"]
[Site "La Palma"]
[Date "2022.08.06"]
[Round "1.8"]
[White "Hernandez Gutierrez, Jose"]
[Black "Geske, Julian"]
[Result "0-1"]
[ECO "A62"]
[WhiteElo "1751"]
[BlackElo "2386"]
[Annotator "TA"]
[PlyCount "75"]
[EventDate "2022.08.06"]
[EventType "swiss"]
[EventCountry "ESP"]
[SourceTitle "playchess.com"]
[Source "ChessBase"]
[SourceQuality "1"]
[TimeControl "5400+30"]

{[%evp 17,75,19,15,0,1,2,22,-15,-18,-45,-17,-29,-13,-52,-46,-53,-19,-76,-77,-79,-56,-91,-82,-95,-96,-95,-90,-110,-55,-56,-56,-71,-20,-131,-86,-191,-208,-191,-195,-250,-246,-246,-246,-395,-395,-395,-388,-388,-388,-498,-495,-510,-519,-503,-491,-976,-947,-5227,-5079,-29998]} 1. d4 {[%emt 0:00:05]} Nf6 {[%emt 0:00:07]} 2. c4 {[%emt 0:00:28]} c5 {[%emt 0:00:06]} 3. d5 {[%emt 0:00:10]} e6 {[%emt 0:00:05]} 4. Nc3 {[%emt 0:00:06]} exd5 {[%emt 0:00:18]} 5. cxd5 {[%emt 0:00:04]} d6 {[%emt 0:00:15]} 6. g3 {[%emt 0:01:43]} g6 {[%emt 0:00:09]} 7. Bg2 {[%emt 0:00:04]} Bg7 {[%emt 0:00:06]} 8. Nf3 {[%emt 0:00:21]} O-O {[%emt 0:00:11]} 9. O-O {[%emt 0:00:04]} Nbd7 {[%emt 0:00:13]} 10. e4 {[%emt 0:03:09] A62: Modern Benoni: Fianchetto Variation without early ...Nbd7.} Re8 {[%emt 0:04:26]} 11. Nd2 {[%emt 0:03:18]} Ne5 {[%emt 0:01:17]} 12. Qe2 {[%emt 0:03:52] The position is equal.} Nh5 {[%emt 0:01:19]} 13. Nc4 {[%emt 0:04:06]} f5 {[%emt 0:02:25]} 14. Nxe5 {[%emt 0:10:37]} Bxe5 {[%emt 0:01:43] [#]} 15. Bf3 $146 {[%emt 0:08:52]} ({Predecessor:} 15. Bh6 a6 16. a4 Nf6 17. f3 Rb8 18. Bg5 Qc7 19. a5 b5 20. axb6 Rxb6 21. Na4 {0-1 (49) Tica,S (2396)-Lodici,L (2483) Tornelo INT 2021}) 15... Nf6 {[%emt 0:02:29]} 16. Bg5 {[%emt 0:03:00]} Qa5 {[%emt 0:07:40]} 17. Bxf6 {[%emt 0:02:53]} (17. Rfe1 $11) 17... Bxf6 $17 {[%emt 0:00:21]} 18. Qc2 {[%emt 0:00:30]} Bd7 {[%emt 0:09:05]} 19. a4 {[%emt 0:01:17]} Re7 {[%emt 0:02:58]} 20. Bg2 {[%emt 0:08:27]} Rae8 {[%emt 0:01:09]} 21. f3 {[%emt 0:01:10]} Qb4 {[%emt 0:02:57]} 22. Kh1 {[%emt 0:08:43]} a6 {[%emt 0:02:45] Black is more active.} ({Better is} 22... Bd4 $17 23. Rab1 Qc4) 23. Bh3 $1 $15 {[%emt 0:07:27]} Qc4 {[%emt 0:10:26][%cal Rf5e4]} 24. Rf2 {[%emt 0:06:47][%cal Re4f5]} Bg7 {[%emt 0:10:45]} (24... Rf8 $17) 25. Bf1 {[%emt 0:06:28]} (25. exf5 $11 Re3 26. Bf1) 25... Qb4 {[%emt 0:00:17]} 26. Bd3 {[%emt 0:00:04]} (26. Re2 $17 {was necessary.}) 26... c4 $19 {[%emt 0:01:12]} 27. Bf1 {[%emt 0:01:30]} Qc5 {[%emt 0:01:33]} 28. Bg2 {[%emt 0:04:23] [#]} (28. Re2 {is a better defense.}) 28... b5 $1 {[%emt 0:01:19]} 29. axb5 {[%emt 0:01:55]} axb5 {[%emt 0:00:02][%cal Ba6b5,Bb5b4,Bb4c3][%mdl 32]} ({Worse is} 29... Bxb5 30. Rff1 $11) 30. Ra6 {[%emt 0:03:24]} (30. Rff1 $142) 30... b4 {[%emt 0:03:14]} 31. Nd1 {[%emt 0:00:44]} c3 {[%emt 0:02:34]} 32. bxc3 {[%emt 0:02:45]} bxc3 {[%emt 0:00:22]} 33. Qa2 {[%emt 0:03:31]} Rc8 {[%emt 0:04:39] And now ...c2 would win. Black is clearly winning.} 34. Rc2 {[%emt 0:00:55]} fxe4 {[%emt 0:01:12]} 35. fxe4 {[%emt 0:00:17]} Qd4 {[%emt 0:01:37]} 36. Nf2 {[%emt 0:02:16]} (36. Qb1 $142 Bb5 37. Rxd6) 36... Rf7 {[%emt 0:01:15]} 37. Kg1 {[%emt 0:01:26] [#]} Rxf2 $1 {[%emt 0:26:29][%mdl 512]} 38. Kh1 {[%emt 0:02:39] Weighted Error Value: White=0.68/Black=0.10 (very precise)} (38. Rxf2 c2) 0-1

[Event "IV Estrellas 2022"]
[Site "La Palma"]
[Date "2022.08.06"]
[Round "1.9"]
[White "Pierrot, Facundo"]
[Black "Bethencourt Hernandez, Alberto"]
[Result "1-0"]
[ECO "B06"]
[WhiteElo "2371"]
[BlackElo "1681"]
[Annotator "TA"]
[PlyCount "61"]
[EventDate "2022.08.06"]
[EventType "swiss"]
[EventCountry "ESP"]
[SourceTitle "playchess.com"]
[Source "ChessBase"]
[SourceQuality "1"]
[TimeControl "5400+30"]

{[%evp 11,61,0,28,3,40,35,43,-28,0,-11,21,-18,3,-25,-19,-27,-8,-58,-62,-83,-79,-77,-86,-84,-66,-81,-77,-97,-60,-63,0,-7,-39,-20,0,0,150,149,275,279,283,288,281,273,434,431,423,418,409,386,2062,1682]} 1. d4 {[%emt 0:00:04]} Nf6 {[%emt 0:00:07]} 2. g3 {[%emt 0:00:19]} g6 {[%emt 0:00:19]} 3. Bg2 {[%emt 0:00:06]} Bg7 {[%emt 0:00:14]} 4. e4 {[%emt 0:00:33]} d6 {[%emt 0:00:49]} 5. Ne2 {[%emt 0:00:37]} O-O {[%emt 0:01:10]} 6. O-O {[%emt 0:00:08]} c5 {[%emt 0:05:01]} 7. d5 {[%emt 0:00:48] B06: Modern Defence.} e6 {[%emt 0:02:57]} 8. Nbc3 {[%emt 0:07:59]} exd5 {[%emt 0:03:32]} 9. exd5 {[%emt 0:00:13] [#]} ({White should try} 9. Nxd5 $14 Nxd5 10. Qxd5) 9... a6 $146 {[%emt 0:09:03]} ({Predecessor:} 9... Re8 10. b3 Na6 11. Bb2 Bf5 12. h3 h5 13. a3 Qd7 14. Kh2 b5 15. Rb1 Rac8 {0-1 (33) Vondra,Z (2162)-Ralis,P (2184) Czech Republic 2017}) 10. a4 {[%emt 0:00:10]} b6 {[%emt 0:00:08]} 11. Re1 {[%emt 0:08:02]} Re8 {[%emt 0:01:24]} 12. h3 {[%emt 0:01:52]} Nbd7 {[%emt 0:04:43]} 13. Nf4 {[%emt 0:05:24][%cal Of4e6]} Ne5 {[%emt 0:03:04]} 14. Ne4 {[%emt 0:05:58]} (14. Nd3 $11) 14... Nxe4 $15 {[%emt 0:03:05]} 15. Bxe4 {[%emt 1:05:47]} Bd7 {[%emt 0:06:15]} 16. c3 {[%emt 0:00:00]} Qc7 {[%emt 0:03:01]} 17. Bg2 {[%emt 0:00:00]} b5 {[%emt 0:09:20]} 18. axb5 {[%emt 0:00:00]} Bxb5 {[%emt 0:00:10]} 19. Bd2 {[%emt 0:00:00][%cal Bc1d2,Bd2f4,Bf4e5,Be5d6][%mdl 32]} Nc4 {[%emt 0:11:28]} 20. Nd3 {[%emt 0:00:00]} Qb7 {[%emt 0:04:58]} (20... Nxd2 $15 21. Qxd2 a5) 21. Bf4 {[%emt 0:00:00]} Rxe1+ {[%emt 0:00:22]} 22. Qxe1 {[%emt 0:00:00]} Re8 {[%emt 0:00:09]} 23. Qd1 {[%emt 0:00:00]} Be5 {[%emt 0:04:54]} (23... Qc7 $11) 24. b3 $16 {[%emt 0:00:00]} Nb6 {[%emt 0:00:44]} (24... Bxc3 $16 25. bxc4 Bxa1 26. Qxa1 (26. cxb5 Bd4 $14) 26... Bxc4) 25. Bxe5 {[%emt 0:00:00]} Bxd3 {[%emt 0:01:55]} 26. Bxd6 {[%emt 0:00:00] This bishop pair is nice.} ({Less strong is} 26. Qxd3 Rxe5 27. Qxa6 Qxa6 28. Rxa6 Nxd5 $16) 26... c4 {[%emt 0:02:17]} 27. bxc4 {[%emt 0:00:00]} Bxc4 {[%emt 0:00:08]} (27... Nxc4 $142 28. Qxd3 Nxd6 29. Rxa6 Re1+ 30. Kh2 Rd1) 28. Rb1 $18 {[%emt 0:00:00] aiming for Qd4.} Bxd5 {[%emt 0:02:14] [#]} 29. Rxb6 $1 {[%emt 0:00:00][%mdl 512]} Qxb6 {[%emt 0:00:15]} 30. Bxd5 {[%emt 0:00:00]} Qa5 $2 {[%emt 0:07:55]} (30... Kg7) 31. Qf3 {[%emt 0:00:00] Weighted Error Value: White=0.12 (very precise) /Black=0.38} 1-0

[Event "IV Estrellas 2022"]
[Site "La Palma"]
[Date "2022.08.06"]
[Round "1.10"]
[White "Herrera Gonzalez, Jose Antonio"]
[Black "Pap, Misa"]
[Result "0-1"]
[ECO "B75"]
[WhiteElo "1657"]
[BlackElo "2375"]
[Annotator "TA"]
[PlyCount "68"]
[EventDate "2022.08.06"]
[EventType "swiss"]
[EventCountry "ESP"]
[SourceTitle "playchess.com"]
[Source "ChessBase"]
[SourceQuality "1"]
[TimeControl "5400+30"]

{[%evp 22,68,9,-29,-28,-41,-29,-72,-47,-35,-15,-65,-63,-63,-64,-108,-110,-108,-95,-99,-105,-173,-139,-278,-281,-276,-263,-265,-258,-245,-267,-258,-221,-239,-240,-350,-254,-457,-268,-394,-393,-438,-230,-401,-335,-723,-765,-2354,-1479]} 1. e4 {[%emt 0:00:23]} c5 {[%emt 0:00:33]} 2. Nf3 {[%emt 0:00:08]} g6 {[%emt 0:00:10]} 3. d4 {[%emt 0:00:25]} cxd4 {[%emt 0:00:10]} 4. Nxd4 {[%emt 0:01:03]} Bg7 {[%emt 0:00:18]} 5. Be3 {[%emt 0:00:35]} Nc6 {[%emt 0:00:45]} 6. Bc4 {[%emt 0:03:51]} Nf6 {[%emt 0:02:53]} 7. Nc3 {[%emt 0:00:50]} O-O {[%emt 0:00:49]} 8. O-O {[%emt 0:01:17]} d6 {[%emt 0:01:50]} 9. f3 {[%emt 0:01:54]} Qb6 {[%emt 0:18:47]} 10. Na4 {[%emt 0:15:23]} Qa5 {[%emt 0:02:18]} 11. Nxc6 {[%emt 0:09:22]} bxc6 {[%emt 0:00:10]} 12. Nc3 {[%emt 0:08:45]} Rb8 {[%emt 0:00:54] [#] B75: Sicilian Dragon: Yugoslav Attack, Miscellaneous.} 13. Rb1 $146 {[%emt 0:09:30]} ({Predecessor:} 13. Bb3 Rd8 14. Rb1 d5 15. exd5 cxd5 16. Bd4 Rb4 17. a3 Rxd4 18. Qxd4 Ng4 19. Qb4 Qxb4 20. axb4 {½-½ (58) Tripoteau,L (1530)-Ellien,I (1800) Fouesnant 2003}) 13... Nd7 {[%emt 0:07:43][%cal Ob8b2] Hoping for ...Rxb2!} 14. Bd4 {[%emt 0:07:56]} Ne5 {[%emt 0:00:23] Black is better.} (14... e5 $5 {[%cal Re5d4]} 15. Be3 Rxb2 $1 $17) 15. Be2 {[%emt 0:01:37]} Rb4 {[%emt 0:02:28][%cal Ob4d4] And now ...Rxd4! would win.} 16. Be3 {[%emt 0:09:26]} (16. Kh1 $1 $11) 16... Be6 {[%emt 0:01:36] ...Nc4 is the strong threat.} 17. a3 {[%emt 0:01:39]} Rb7 {[%emt 0:07:49]} 18. Bd2 {[%emt 0:05:59] White is on the road to losing.} Nc4 {[%emt 0:04:22] 0x0.001b809ea668dp-1022s more active pieces.} 19. Bxc4 {[%emt 0:00:05]} Bxc4 {[%emt 0:00:05]} 20. Re1 {[%emt 0:00:28]} Rfb8 $36 {[%emt 0:04:37][%cal Bf8b8,Bb8b2,Bb2b1][%mdl 2080] Black is in control.} 21. Nd5 {[%emt 0:10:46]} Qd8 {[%emt 0:00:18]} 22. Nb4 {[%emt 0:00:08] [#]} (22. Ne3 $17 {might work better.} Be6 23. b3) 22... a5 $1 $19 {[%emt 0:00:13]} 23. Nd3 {[%emt 0:00:38]} Bxd3 {[%emt 0:00:28]} ({Not} 23... Bxb2 24. Nxb2 Ba2 25. Rc1 (25. Bc3 $2 Bxb1 26. Nc4 Ba2 $19) 25... Qb6+ 26. Re3 Qxb2 27. Bxa5 $17) 24. cxd3 {[%emt 0:00:03]} Rxb2 {[%emt 0:00:26]} 25. Rxb2 {[%emt 0:00:07]} Rxb2 {[%emt 0:00:04]} ({Inferior is} 25... Bxb2 26. a4) 26. Be3 {[%emt 0:01:02]} c5 {[%emt 0:01:43]} 27. Qa4 {[%emt 0:00:48]} h5 {[%emt 0:01:11]} 28. Rc1 {[%emt 0:00:48]} (28. Kh1 {was worth a try.}) 28... Kh7 {[%emt 0:03:15] White must now prevent ...Re2.} 29. h3 $2 {[%emt 0:02:26]} (29. d4 {is a better defense.}) 29... e6 {[%emt 0:01:11]} (29... Re2 $142 30. Bg5 Qb6) 30. Rc2 {[%emt 0:04:56]} (30. Rf1 $142) 30... Rb1+ {[%emt 0:01:58]} 31. Kh2 {[%emt 0:00:02]} h4 {[%emt 0:02:50]} (31... Qh4 $142 {( -> ...Be5+)} 32. Rf2 Re1) 32. f4 {[%emt 0:02:03] Against Be5} (32. Rc1 {was forced.} Rb2 33. Rc2) 32... Qb6 {[%emt 0:03:26]} 33. Bd2 $2 {[%emt 0:01:59]} (33. e5) 33... c4 {[%emt 0:00:45][%csl Gb1][%cal Rb6g1]} 34. d4 {[%emt 0:00:32]} Qxd4 {[%emt 0:00:10] Weighted Error Value: White=0.93/Black=0.34} 0-1

[Event "IV Estrellas 2022"]
[Site "La Palma"]
[Date "2022.08.06"]
[Round "1.11"]
[White "Roeder, Matthias"]
[Black "Garcia Jorge, Jose Luis"]
[Result "1-0"]
[ECO "E06"]
[WhiteElo "2357"]
[BlackElo "1654"]
[Annotator "TA"]
[PlyCount "47"]
[EventDate "2022.08.06"]
[EventType "swiss"]
[EventCountry "ESP"]
[SourceTitle "playchess.com"]
[Source "ChessBase"]
[SourceQuality "1"]
[TimeControl "5400+30"]

{[%evp 19,47,30,64,39,26,34,99,91,153,85,95,98,120,100,105,99,116,58,129,127,162,158,159,162,280,289,308,286,302,307]} 1. Nf3 {[%emt 0:00:06]} d5 {[%emt 0:00:18]} 2. g3 {[%emt 0:00:12]} Nf6 {[%emt 0:00:14]} 3. Bg2 {[%emt 0:00:16]} e6 {[%emt 0:00:28]} 4. O-O {[%emt 0:00:11]} Be7 {[%emt 0:00:04]} 5. c4 {[%emt 0:00:26]} O-O {[%emt 0:00:25]} 6. d4 {[%emt 0:00:46]} c6 {[%emt 0:00:11]} 7. Qc2 {[%emt 0:01:43]} b6 {[%emt 0:00:54]} 8. Rd1 {[%emt 0:01:20]} Bb7 {[%emt 0:00:42]} 9. Nc3 {[%emt 0:03:05]} Na6 {[%emt 0:05:03]} 10. b3 {[%emt 0:07:40]} Rc8 {[%emt 0:00:08]} 11. Bb2 {[%emt 0:03:43] E06: Closed Catalan: Early deviations.} c5 {[%emt 0:02:23] [#]} 12. Rac1 $146 {[%emt 0:00:47]} ({Predecessor:} 12. dxc5 Nxc5 13. cxd5 Nxd5 14. Ne1 Nd7 15. Bxd5 Bxd5 16. Qd3 Bc6 17. Nb5 Bd5 18. Nxa7 Ra8 {½-½ (43) Kelires,A (2464)-Rychagov,A (2558) Paleochora 2016}) 12... cxd4 (12... dxc4 $14 13. bxc4 cxd4) 13. Nxd4 $16 {[%emt 0:00:30] White is better.} Nc7 {[#]} (13... Qd7 $142) 14. Qb1 {[%emt 0:00:30] White is more active.} ({Better is} 14. e4 $1 {[%cal Re4d5]}) 14... Bc5 15. cxd5 {[%emt 0:00:30]} exd5 16. e3 {[%emt 0:00:30][%cal Be2e3,Be3e4,Be4d5][%mdl 32]} Bxd4 17. Rxd4 {[%emt 0:00:30]} Ne6 18. Rdd1 {[%emt 0:00:30]} (18. Rd2 $16) 18... Ba8 {[#]} (18... Qd7 $14) 19. Nxd5 $1 {[%emt 0:00:30][%mdl 512]} Nxd5 {[#]} (19... Bxd5 20. Bxf6) 20. e4 $1 {[%emt 0:00:30]} ({Don't play} 20. Rxc8 $6 Qxc8 21. Bxd5 Ng5 $14) 20... Rxc1 21. Qxc1 {[%emt 0:00:30]} Qc8 (21... Nc3 $142 22. Rxd8 (22. Bxc3 Qc7 $16) 22... Ne2+ 23. Kf1 Nxc1 24. Rxf8+ Kxf8) 22. exd5 $18 {[%emt 0:00:30] White has a decisive advantage.} Qxc1 23. Rxc1 {[%emt 0:00:30]} Nc5 24. Ba3 {[%emt 0:00:30] Weighted Error Value: White=0.16 (very precise) /Black=0.34} 1-0

[Event "IV Estrellas 2022"]
[Site "La Palma"]
[Date "2022.08.06"]
[Round "1.15"]
[White "Acosta Sosa, Juan Manuel"]
[Black "Martin Ramos, Daniel"]
[Result "1-0"]
[ECO "D02"]
[WhiteElo "2310"]
[BlackElo "1582"]
[Annotator "RC"]
[PlyCount "141"]
[EventDate "2022.08.06"]
[EventType "swiss"]
[EventCountry "ESP"]
[SourceTitle "playchess.com"]
[Source "ChessBase"]
[SourceQuality "1"]
[TimeControl "5400+30"]

1. d4 {[%emt 1:31:00]} d5 {[%emt 1:31:00]} 2. Nf3 {[%emt 0:00:30]} Nf6 {[%emt 0:00:30]} 3. Bf4 {[%emt 0:00:30]} c5 {[%emt 0:00:30]} 4. e3 {[%emt 0:00:30]} e6 {[%emt 0:00:30]} 5. Be2 {[%emt 0:00:30]} Bd6 {[%emt 0:00:30]} 6. dxc5 {[%emt 0:00:30]} Bxc5 {[%emt 0:00:30]} 7. O-O {[%emt 0:00:30]} O-O {[%emt 0:00:30]} 8. Nbd2 {[%emt 0:00:00]} Nc6 {[%emt 0:00:00]} 9. a3 {[%emt 0:00:00]} Qe7 {[%emt 0:00:00]} 10. b4 {[%emt 0:00:00]} Bd6 {[%emt 0:00:00]} 11. Nb3 {[%emt 0:00:00]} e5 {[%emt 0:00:00]} 12. Bg5 {[%emt 0:00:00]} e4 {[%emt 0:00:00]} 13. Nfd4 {[%emt 0:00:00]} Rd8 {[%emt 0:00:00]} 14. Nxc6 {[%emt 0:00:00]} bxc6 {[%emt 0:00:00]} 15. Bh4 {[%emt 0:00:00]} Be5 {[%emt 0:00:00]} 16. Ra2 {[%emt 0:00:00]} Be6 {[%emt 0:00:00]} 17. Nd4 {[%emt 0:00:00]} Qc7 {[%emt 0:00:00]} 18. Bg3 {[%emt 0:00:00]} Bxg3 {[%emt 0:00:00]} 19. hxg3 {[%emt 0:00:00]} c5 {[%emt 0:00:00]} 20. Nxe6 {[%emt 0:00:00]} fxe6 {[%emt 0:00:00]} 21. Qd2 {[%emt 0:00:00]} c4 {[%emt 0:00:00]} 22. Qc3 {[%emt 0:00:00]} a5 {[%emt 0:00:00]} 23. b5 {[%emt 0:00:00]} Rdb8 {[%emt 0:00:00]} 24. a4 {[%emt 0:00:00]} Nd7 {[%emt 0:00:00]} 25. Bg4 {[%emt 0:00:00]} Rb6 {[%emt 0:00:00]} 26. Raa1 {[%emt 0:00:00]} Qe5 {[%emt 0:00:00]} 27. Qd4 {[%emt 0:00:00]} Qxd4 {[%emt 0:00:00]} 28. exd4 {[%emt 0:00:00]} Rd6 {[%emt 0:00:00]} 29. c3 {[%emt 0:00:00]} Rf8 {[%emt 0:00:00]} 30. Rae1 {[%emt 0:00:00]} Nb6 {[%emt 0:00:00]} 31. Bd1 {[%emt 0:00:00]} Rf6 {[%emt 0:00:00]} 32. f3 {[%emt 0:00:00]} exf3 {[%emt 0:00:00]} 33. gxf3 {[%emt 0:00:00]} g6 {[%emt 0:00:00]} 34. Kg2 {[%emt 0:00:00]} Rd7 {[%emt 0:00:00]} 35. Re3 {[%emt 0:00:00]} g5 {[%emt 0:00:00]} 36. Bc2 {[%emt 0:00:00]} h6 {[%emt 0:00:00]} 37. Rfe1 {[%emt 0:00:00]} Re7 {[%emt 0:00:00]} 38. Kh3 {[%emt 0:00:00]} Kg7 {[%emt 0:00:00]} 39. Kg4 {[%emt 0:00:00]} Kg8 {[%emt 0:00:00]} 40. Kh5 {[%emt 0:00:00]} Kg7 {[%emt 0:00:00]} 41. R1e2 {[%emt 0:00:00]} Kf7 {[%emt 0:00:00]} 42. Kg4 {[%emt 0:00:00]} Ke8 {[%emt 0:00:00]} 43. Re1 {[%emt 0:00:00]} Kd7 {[%emt 0:00:30]} 44. R3e2 {[%emt 0:00:00]} Ref7 {[%emt 0:02:44]} 45. Re3 {[%emt 0:00:00]} Rf8 {[%emt 0:00:20]} 46. Bd1 {[%emt 0:00:00]} Nc8 {[%emt 0:00:42]} 47. Rf1 {[%emt 0:00:00]} Nd6 {[%emt 0:00:38]} 48. Bc2 {[%emt 0:00:00]} Nf5 {[%emt 0:00:59]} 49. Bxf5 {[%emt 0:00:00]} exf5+ {[%emt 0:01:29]} 50. Kh5 {[%emt 0:00:00]} f4 {[%emt 0:01:20]} 51. Re5 fxg3 {[%emt 0:02:27]} 52. Rxd5+ {[%emt 0:00:00]} Rd6 {[%emt 0:00:23]} 53. Rxd6+ {[%emt 0:00:00]} Kxd6 {[%emt 0:00:06]} 54. Kg4 {[%emt 0:00:00]} Re8 {[%emt 0:01:51]} 55. Kxg3 {[%emt 0:00:00]} Re3 {[%emt 0:00:15]} 56. Rc1 {[%emt 0:00:00]} h5 {[%emt 0:00:08]} 57. Kf2 {[%emt 0:00:00]} Rd3 {[%emt 0:00:27]} 58. Ke2 {[%emt 0:00:00]} h4 {[%emt 0:00:09]} 59. Rg1 {[%emt 0:00:00]} Rxc3 {[%emt 0:01:00]} 60. Rxg5 {[%emt 0:00:00]} Rd3 {[%emt 0:00:25]} 61. Rg4 {[%emt 0:00:00]} h3 {[%emt 0:00:14]} 62. Rh4 {[%emt 0:00:00]} h2 {[%emt 0:00:33]} 63. Rxh2 {[%emt 0:00:00]} Rxd4 {[%emt 0:00:07]} 64. Ke3 {[%emt 0:00:00]} Rd3+ {[%emt 0:00:48]} 65. Ke4 {[%emt 0:00:00]} Ra3 {[%emt 0:00:22]} 66. Rh6+ {[%emt 0:00:00]} Kc5 {[%emt 0:00:58]} 67. Rc6+ {[%emt 0:00:00]} Kb4 {[%emt 0:00:19]} 68. b6 {[%emt 0:00:00]} Rb3 {[%emt 0:00:34]} 69. b7 {[%emt 0:00:00]} Kxa4 {[%emt 0:00:10]} 70. Rxc4+ {[%emt 0:00:00]} Ka3 {[%emt 0:00:10]} 71. Rc3 {[%emt 0:00:00]} 1-0